lending/lending_fUSD_20260101
["ID","MTS","AMOUNT","RATE_DAILY","PERIOD"]
[400255786,1767231032039,-195.0,0.00014037,2]
[400255787,1767231032053,-301.40726593,0.00014074,2]
[400255788,1767231032068,-195.0,0.00014147,2]
[400255789,1767231032080,-195.0,0.00014251,2]
[400255790,1767231032092,-1600.0,0.00014294,2]
[400255791,1767231032105,-150.0,0.00014351,2]
[400255792,1767231032116,-164.74,0.00014696,2]
[400255793,1767231032127,-1920.272,0.00014697,2]
[400255794,1767231032138,-151.0,0.00014894,2]
[400255795,1767231032149,-154.19057184,0.00014894,2]
[400255796,1767231032160,-182.46132448,0.00014894,2]
[400255797,1767231032172,-198.80445632,0.00014896,2]
[400255798,1767231032184,-575.71112998,0.00014896,2]
[400255799,1767231032196,-236.0942,0.00014897,2]
[400255800,1767231032208,-336.7499,0.00014897,2]
[400255801,1767231032219,-83843.90342315,0.00014897,2]
[400255802,1767231032235,-1337.30379565,0.00014897,2]
[400255803,1767231032251,-8019.55355723,0.00014897,2]
[400255804,1767231032266,-22275.67120932,0.00014897,2]
[400255805,1767231032279,-172698.46163096,0.00014897,2]
[400255806,1767231032295,-967.83575576,0.00014897,2]
[400255813,1767231038126,162.52143122,0.00043163,120]
[400255814,1767231038286,-442.14799494,0.00014897,2]
[400255883,1767231039047,300.10499459,0.00043163,120]
[400255974,1767231039941,177.9199509,0.00043163,120]
[400256021,1767231040340,-440.085,0.00014897,2]
[400256081,1767231040844,312.7211161,0.00043163,120]
[400256314,1767231044139,196.59613828,0.00043163,120]
[400256378,1767231046976,151.50678571,0.00043163,120]
[400256379,1767231048083,383.45314081,0.00043163,120]
[400256380,1767231051611,168.09558581,0.00043163,120]
[400256381,1767231053934,164.97689224,0.00043163,120]
[400256382,1767231055713,155.14536133,0.00043163,120]
[400256383,1767231060104,166.97799032,0.00043163,120]
[400256384,1767231062143,500.0,0.00043163,120]
[400256385,1767231062403,158.37074922,0.00043163,120]
[400256386,1767231063107,179.61346915,0.00043163,120]
[400256387,1767231063245,283.31539329,0.00043163,120]
[400256388,1767231063905,180.06173583,0.00043163,120]
[400256389,1767231065228,224.04118416,0.00043163,120]
[400256390,1767231069891,500.0,0.00043163,120]
[400256391,1767231070126,178.22727561,0.00043163,120]
[400256392,1767231075422,175.32177332,0.00043163,120]
[400256393,1767231079074,231.27791622,0.00043163,120]
[400256394,1767231080655,166.0121773,0.00043163,120]
[400256395,1767231081154,169.2609842,0.00043163,120]
[400256396,1767231081779,164.44100495,0.00043163,120]
[400256397,1767231081823,591.03770717,0.00043163,30]
[400256398,1767231086384,175.28158235,0.00043163,120]
[400256399,1767231089308,188.42832255,0.00043163,120]
[400256400,1767231091860,167.43261144,0.00043163,120]
[400256401,1767231097419,296.19695825,0.00043163,120]
[400256402,1767231097504,168.92367187,0.00043163,120]
[400256404,1767231103113,162.56907327,0.00043163,120]
[400256405,1767231103626,448.5561,0.00043163,120]
[400256406,1767231105369,196.34497075,0.00043163,120]
[400256407,1767231107283,190.54402702,0.00043163,120]
[400256408,1767231109047,185.03270214,0.00043163,120]
[400256409,1767231110800,176.15598749,0.00043163,120]
[400256410,1767231111049,500.0,0.00043163,120]
[400256411,1767231111323,500.0,0.00043163,120]
[400256412,1767231111560,612.51961649,0.00043163,120]
[400256413,1767231115860,285.20730387,0.00043163,120]
[400256414,1767231117709,293.3553525,0.00043163,120]
[400256415,1767231117929,171.28610877,0.00043163,120]
[400256416,1767231117969,171.30703929,0.00043163,120]
[400256417,1767231119820,153.54556521,0.00043163,120]
[400256418,1767231121322,198.54028445,0.00043163,120]
[400256419,1767231123584,150.00146241,0.00043163,120]
[400256420,1767231125093,294.19716111,0.00043163,120]
[400256421,1767231126669,244.06542713,0.00043163,120]
[400256422,1767231127404,167.55710798,0.00043163,120]
[400256423,1767231129062,386.53199643,0.00043163,120]
[400256424,1767231132174,245.72625601,0.00043163,120]
[400256425,1767231133095,1114.31798,0.00043163,120]
[400256426,1767231133948,180.09225788,0.00043163,120]
[400256427,1767231135883,225.79406608,0.00043163,120]
[400256428,1767231136660,178.88559862,0.00043163,120]
[400256429,1767231138528,157.613301,0.00043163,120]
[400256430,1767231140309,301.55225226,0.00043163,120]
[400256431,1767231142396,179.41969707,0.00043163,120]
[400256432,1767231144264,162.24746132,0.00043163,60]
[400256433,1767231144564,318.86652059,0.00043163,120]
[400256434,1767231146868,239.57503117,0.00043163,120]
[400256435,1767231147395,294.46274457,0.00043163,120]
[400256436,1767231148363,297.78118392,0.00043163,120]
[400256437,1767231149309,416.11265566,0.00043163,120]
[400256438,1767231151622,159.07893084,0.00043163,120]
[400256439,1767231153705,312.09542573,0.00043163,120]
[400256440,1767231154823,160.00223473,0.00043163,120]
[400256441,1767231155434,162.47892414,0.00043163,120]
[400256442,1767231156006,213.41899045,0.00043163,120]
[400256443,1767231157167,386.39192367,0.00043163,120]
[400256444,1767231158167,188.06452907,0.00043163,120]
[400256445,1767231159754,169.90801391,0.00043163,120]
[400256446,1767231159863,476.90485696,0.00043163,120]
[400256447,1767231163558,500.0,0.00043163,120]
[400256448,1767231163969,500.0,0.00043163,120]
[400256449,1767231164052,167.61970374,0.00043163,120]
[400256450,1767231164660,500.0,0.00043163,120]
[400256451,1767231164909,554.00991849,0.00043163,120]
[400256452,1767231170546,205.62056576,0.00043163,120]
[400256453,1767231171831,174.59754976,0.00043163,120]
[400256454,1767231173649,179.14324609,0.00043163,120]
[400256455,1767231175581,500.0,0.00043163,120]
[400256456,1767231175826,313.76520056,0.00043163,120]
[400256457,1767231176011,155.87016935,0.00043163,120]
[400256458,1767231178603,196.31721298,0.00043163,120]
[400256459,1767231182245,344.42933498,0.00043163,120]
[400256460,1767231182508,168.33130247,0.00043163,120]
[400256462,1767231184563,366.04445217,0.00043163,120]
[400256463,1767231184614,162.75515553,0.00043163,120]
[400256465,1767231187809,231.55142348,0.00043163,120]
[400256466,1767231188096,393.12686013,0.00043163,120]
[400256467,1767231190163,612.36279015,0.00043163,120]
[400256468,1767231191915,259.9125269,0.00043163,120]
[400256469,1767231193545,204.91362382,0.00043163,120]
[400256470,1767231193771,258.0,0.00030137,120]
[400256471,1767231195539,500.0,0.00043163,120]
[400256472,1767231195728,192.05238032,0.00043163,120]
[400256473,1767231195784,304.85804222,0.00043163,120]
[400256474,1767231197052,205.79101168,0.00043163,120]
[400256475,1767231201623,601.82915174,0.00043163,30]
[400256476,1767231202191,287.84620436,0.00043163,120]
[400256477,1767231203327,175.36456993,0.00043163,120]
[400256478,1767231207228,472.67206591,0.00043163,120]
[400256479,1767231212215,165.15583631,0.00043163,120]
[400256480,1767231214119,160.10750818,0.00043163,120]
[400256481,1767231214226,150.61026261,0.00043163,120]
[400256482,1767231215604,290.08344796,0.00043163,120]
[400256483,1767231216197,210.23918876,0.00043163,120]
[400256484,1767231217085,165.04086656,0.00043163,120]
[400256485,1767231218371,349.31275493,0.00043163,120]
[400256486,1767231218844,190.22618349,0.00043163,90]
[400256487,1767231224199,189.27121389,0.00043163,120]
[400256488,1767231227347,624.3626652,0.00043163,120]
[400256489,1767231227465,157.04260066,0.00043163,120]
[400256490,1767231228148,218.33308008,0.00043163,120]
[400256491,1767231229326,163.68485746,0.00043163,120]
[400256492,1767231233783,281.63230636,0.00043163,120]
[400256493,1767231237581,168.64988985,0.00043163,120]
[400256494,1767231239183,247.41805714,0.00043163,120]
[400256495,1767231241258,500.0,0.00043163,120]
[400256496,1767231241508,268.28985942,0.00043163,120]
[400256497,1767231249392,150.31587002,0.00043163,120]
[400256498,1767231254524,191.92439544,0.00043163,60]
[400256499,1767231256907,188.57632225,0.00043163,120]
[400256500,1767231261489,173.14134957,0.00043163,120]
[400256501,1767231262719,177.28271626,0.00043163,120]
[400256502,1767231266057,178.19435573,0.00043163,120]
[400256503,1767231266636,172.0804963,0.00043163,120]
[400256504,1767231274421,166.2574292,0.00043163,120]
[400256505,1767231276328,154.31948173,0.00043163,120]
[400256506,1767231277720,170.40001741,0.00043163,120]
[400256507,1767231281046,157.55,7.087e-05,2]
[400256508,1767231281225,157.55,7.875e-05,2]
[400256509,1767231281412,157.55,8.662e-05,2]
[400256510,1767231281600,157.55,9.45e-05,2]
[400256511,1767231282040,157.55,0.00010237,2]
[400256512,1767231287839,160.62738922,0.00043163,120]
[400256513,1767231313748,175.73354055,0.00043163,120]
[400256514,1767231322097,175.37097981,0.00043163,120]
[400256515,1767231325059,150.36808497,0.00043163,120]
[400256516,1767231336471,170.10608685,0.00043163,120]
[400256517,1767231342320,169.20424233,0.00043163,120]
[400256518,1767231354606,159.12866534,0.00043163,120]
[400256519,1767231358494,185.72862298,0.00043163,120]
[400256520,1767231363506,500.0,0.00043163,120]
[400256521,1767231366999,153.53243763,0.00043163,120]
[400256522,1767231375776,176.3518223,0.00043163,120]
[400256523,1767231377253,154.73194605,0.00043163,120]
[400256524,1767231390829,181.08635174,0.00043163,120]
[400256526,1767231397808,183.1288789,0.00043163,120]
[400256527,1767231406500,180.71872437,0.00043163,120]
[400256529,1767231434494,163.30160677,0.00043163,120]
[400256531,1767231445124,157.5600029,0.00043163,120]
[400256532,1767231446858,183.16276254,0.00043163,120]
[400256533,1767231464354,179.57054212,0.00043163,120]
[400256534,1767231474472,156.35947,0.00043163,120]
[400256538,1767231508678,159.59192868,0.00043163,120]
[400256539,1767231511002,157.68835657,0.00043163,120]
[400256540,1767231511969,178.64153599,0.00043163,120]
[400256541,1767231514852,1075.7661091,0.00043163,120]
[400256542,1767231528570,181.08068368,0.00043163,120]
[400256543,1767231534001,163.17096701,0.00043163,120]
[400256544,1767231538471,236.0,0.00043163,120]
[400256545,1767231541287,175.22016184,0.00043163,120]
[400256546,1767231544750,188.56560984,0.00043164,120]
[400256547,1767231549833,183.28353918,0.00043164,120]
[400256548,1767231562208,164.65430719,0.00043164,120]
[400256549,1767231569185,156.18591479,0.00043164,120]
[400256550,1767231601050,214.78590152,0.00043164,120]
[400256551,1767231621147,162.06856352,0.00043164,120]
[400256552,1767231624633,167.0,0.00043164,30]
[400256553,1767231662721,500.0,0.00043164,120]
[400256554,1767231667573,154.36255535,0.00043164,120]
[400256555,1767231672229,152.37016778,0.00043164,60]
[400256556,1767231709560,177.91556988,0.00043164,120]
[400256557,1767231719443,156.30803245,0.00043164,120]
[400256558,1767231746020,180.36250471,0.00043164,120]
[400256559,1767231786009,231.76259702,0.00043164,120]
[400256560,1767231821432,2308.5857805,0.00043164,120]
[400256561,1767231880271,881.67355625,0.00043164,120]
[400256562,1767231932391,188.055939,0.00043164,50]
[400256564,1767231961679,500.0,0.00043164,120]
[400256582,1767232053134,248.762263,0.00043164,50]
[400256583,1767232136901,5000.0,0.00043164,30]
[400256679,1767232224422,2841.580898,0.00043164,120]
[400256685,1767232232081,-240.0,0.00011024,2]
[400256686,1767232232091,-170.93675207,0.00011024,2]
[400256687,1767232232102,-157.55,0.00011024,2]
[400256688,1767232232112,-85.33537495,0.00011812,2]
[400256689,1767232232124,-72.21462505,0.00011812,2]
[400256690,1767232232138,-250.0,0.00012126,2]
[400256691,1767232232148,-300.0,0.00012126,2]
[400256692,1767232232157,-157.55,0.00012599,2]
[400256693,1767232232167,-166.66,0.00013147,2]
[400256694,1767232232177,-157.55,0.00013387,2]
[400256695,1767232232187,-157.65,0.00013408,2]
[400256696,1767232232197,-166.66,0.00013424,2]
[400256697,1767232232207,-1000.0,0.00013463,2]
[400256698,1767232232217,-166.66,0.00013701,2]
[400256699,1767232232226,-166.66,0.00013978,2]
[400256700,1767232232236,-150.0,0.00013994,2]
[400256701,1767232232246,-999.0,0.00014059,3]
[400256702,1767232232255,-307.62463828,0.00014164,2]
[400256703,1767232232265,-300.0,0.00014172,2]
[400256704,1767232232275,-1546.28,0.00014173,2]
[400256705,1767232232284,-300.0,0.00014173,2]
[400256706,1767232232294,-500.0,0.00014173,2]
[400256707,1767232232304,-626.70530425,0.00014173,2]
[400256708,1767232232316,-157.55,0.00014174,2]
[400256709,1767232232326,-6943.68130583,0.00014174,2]
[400256710,1767232232339,-1073.20076212,0.00014174,2]
[400256711,1767232232350,-347.43508066,0.00014174,2]
[400256712,1767232232366,-987.4479749,0.00014174,2]
[400256713,1767232232378,-648.22487649,0.00014174,2]
[400256714,1767232232388,-150.99,0.00014174,2]
[400256715,1767232232397,-627.79407349,0.00014174,2]
[400256717,1767232232409,-12027.60592651,0.00014174,2]
[400256719,1767232232420,-554.77,0.00014178,2]
[400256721,1767232232429,-166.66,0.00014254,2]
[400256722,1767232232439,-200.0,0.00014308,2]
[400256723,1767232232449,-180.33678134,0.00014448,2]
[400256725,1767232232459,-166.66,0.00014531,2]
[400256726,1767232232468,-2500.0,0.00014597,2]
[400256728,1767232232478,-4475.36341613,0.00014687,2]
[400256729,1767232232494,-445.96440231,0.00014687,2]
[400256730,1767232232506,-8405.28264076,0.00014687,2]
[400256731,1767232232515,-1249.69791465,0.00014687,2]
[400256732,1767232232526,-16214.15141019,0.00014687,2]
[400256733,1767232232536,-204.76632703,0.00014687,2]
[400256734,1767232232546,-151.0,0.00014694,2]
[400256735,1767232232555,-20415.37448625,0.00014697,2]
[400256736,1767232232566,-298.7827291,0.00014697,2]
[400256737,1767232232577,-5784.96598384,0.00014697,2]
[400256738,1767232232598,-6347.11075223,0.00014697,2]
[400256739,1767232232610,-2581.03791468,0.00014697,2]
[400256740,1767232232622,-3055.13271573,0.00014697,2]
[400256741,1767232232633,-6030.11,0.00014697,2]
[400256742,1767232232649,-270.69232887,0.00014697,2]
[400256743,1767232232661,-10198.49070691,0.00014697,2]
[400256744,1767232232677,-477.23143448,0.00014697,2]
[400256745,1767232232691,-879.53415355,0.00014697,2]
[400256746,1767232232702,-1070.98248626,0.00014697,2]
[400256747,1767232232714,-1991.73526069,0.00014697,2]
[400256749,1767232238207,-2629.97761171,0.00014697,2]
[400256750,1767232238221,-36959.68183916,0.00014697,2]
[400256751,1767232238258,-2524.94000031,0.00014697,2]
[400256752,1767232238313,-999.0,0.00014697,2]
[400256753,1767232238326,-43632.22656074,0.00014697,2]
[400256754,1767232238339,-7235.97902618,0.00014697,2]
[400256755,1767232238367,-611.8593407,0.00014697,2]
[400256950,1767232240360,-392.79297587,0.00014697,2]
[400256978,1767232240622,-1088.55759989,0.00014697,2]
[400257242,1767232244766,-553.85569524,0.00014697,2]
[400257246,1767232246250,-1197.0,0.00014697,2]
[400257251,1767232262503,500.0,0.00043164,120]
[400257252,1767232362492,4162.16,0.00043164,120]
[400257253,1767232362533,4162.16,0.00043164,120]
[400257254,1767232362678,4162.16,0.00043164,120]
[400257255,1767232362936,4162.16,0.00043164,120]
[400257256,1767232363182,4162.16,0.00043164,120]
[400257257,1767232363425,4162.16,0.00043164,120]
[400257258,1767232363666,4162.16,0.00043164,120]
[400257259,1767232363892,4162.16,0.00043164,120]
[400257260,1767232364122,4162.16,0.00043164,120]
[400257261,1767232364361,4162.16,0.00043164,120]
[400257262,1767232364587,4162.16,0.00043164,120]
[400257263,1767232364815,4162.16,0.00043164,120]
[400257264,1767232365051,4162.16,0.00043164,120]
[400257265,1767232365319,4162.16,0.00043164,120]
[400257266,1767232365559,4162.16,0.00043164,120]
[400257267,1767232365787,4162.16,0.00043164,120]
[400257268,1767232366111,1331.625794,0.00043164,120]
[400257269,1767232366151,4162.16,0.00043164,120]
[400257270,1767232366378,4162.16,0.00043164,120]
[400257271,1767232366608,4162.16,0.00043164,120]
[400257272,1767232366854,4162.16,0.00043164,120]
[400257273,1767232367112,4162.16,0.00043164,120]
[400257274,1767232367722,4162.16,0.00043164,120]
[400257275,1767232368014,4162.16,0.00043164,120]
[400257276,1767232368268,4162.32,0.00043164,120]
[400257277,1767232406760,180.941132,0.00043164,50]
[400257278,1767232438881,416.68,0.00043164,30]
[400257279,1767232463421,6003.0,0.00043164,120]
[400257280,1767232500562,500.0,0.00043164,120]
[400257281,1767232500794,500.0,0.00043164,120]
[400257282,1767232501235,500.0,0.00043164,120]
[400257283,1767232501510,614.60375884,0.00043164,120]
[400257284,1767232531882,10030.20363259,0.0003,120]
[400257286,1767232563974,500.0,0.00043164,120]
[400257287,1767232625394,3001.5,0.00043164,120]
[400257288,1767232641561,50000.0,0.00043164,30]
[400257289,1767232646456,50000.0,0.00043164,31]
[400257290,1767232652003,50000.0,0.00043164,32]
[400257291,1767232654274,6003.0,0.00043164,120]
[400257292,1767232658783,50000.0,0.00043164,33]
[400257293,1767232680090,48000.0,0.00043164,34]
[400257294,1767232748195,3001.8,0.00043163,120]
[400257295,1767232808716,198.0,0.00043163,120]
[400257296,1767232862576,500.0,0.00043163,120]
[400257297,1767232995411,151.0,0.00043163,120]
[400257298,1767232996056,151.0,0.00043163,120]
[400257299,1767232997202,151.0,0.00043163,120]
[400257316,1767233161983,500.0,0.00043163,120]
[400257514,1767233432241,-1000.0,0.00013699,2]
[400257515,1767233432252,-195.0,0.00013699,2]
[400257516,1767233432262,-195.0,0.00013699,2]
[400257517,1767233432271,-195.0,0.0001372,2]
[400257518,1767233432281,-288.48438079,0.00013901,2]
[400257519,1767233432293,-387.11639996,0.00013901,2]
[400257520,1767233432305,-1603.75891355,0.00013901,2]
[400257521,1767233432317,-976.045296,0.00013901,2]
[400257522,1767233432329,-2548.73865149,0.00013901,2]
[400257523,1767233432341,-694.14625423,0.00013901,2]
[400257524,1767233432353,-965.43010398,0.00013901,2]
[400257525,1767233432363,-500.0,0.00013907,2]
[400257526,1767233432373,-300.0,0.00013923,2]
[400257527,1767233432384,-300.0,0.00013923,2]
[400257528,1767233432393,-200.0,0.00013924,2]
[400257529,1767233432403,-174.13551995,0.00014378,2]
[400257530,1767233432474,-1691.61214627,0.00014378,2]
[400257531,1767233432484,-668.3132812,0.00014378,2]
[400257532,1767233432494,-744.90715104,0.00014378,2]
[400257533,1767233432504,-999.99,0.00014378,2]
[400257534,1767233432514,-150.0,0.00014503,2]
[400257535,1767233432523,-9999.99,0.00014504,2]
[400257536,1767233432533,-29999.99,0.00014504,2]
[400257537,1767233432543,-641.22944591,0.00014597,2]
[400257538,1767233432555,-358.77055409,0.00014597,2]
[400257539,1767233432565,-1194.08241554,0.00014597,2]
[400257543,1767233432599,-297.04785907,0.00014597,2]
[400257544,1767233432612,-2151.7138018,0.00014597,2]
[400257546,1767233432623,-933.07727199,0.00014597,2]
[400257549,1767233432635,-1680.66735613,0.00014597,2]
[400257551,1767233432646,-1023.31953828,0.00014597,2]
[400257553,1767233432658,-491.21182123,0.00014597,2]
[400257555,1767233432670,-1693.63405355,0.00014597,2]
[400257557,1767233432681,-979.31163854,0.00014597,2]
[400257764,1767233440361,-3689.92004387,0.00014597,2]
[400257766,1767233440371,-165.4969409,0.00014627,2]
[400257768,1767233440380,-13805.4103758,0.0001463,2]
[400257770,1767233440389,-2900.6890423,0.0001463,2]
[400257773,1767233440403,-837.4605174,0.0001463,2]
[400257775,1767233440413,-3634.2160485,0.0001463,2]
[400257777,1767233440422,-179.9797357,0.0001463,2]
[400257779,1767233440432,-218.84710724,0.00014682,2]
[400257781,1767233440442,-500.0,0.00014682,2]
[400257783,1767233440452,-1889.505,0.00014694,2]
[400257785,1767233440462,-262.84108368,0.00014696,2]
[400257787,1767233440472,-500.0,0.000148,2]
[400257789,1767233440481,-500.0,0.00014896,2]
[400257791,1767233440491,-500.0,0.00014896,2]
[400257794,1767233440501,-500.0,0.00014896,2]
[400257796,1767233440511,-2500.0,0.00014968,2]
[400257798,1767233440520,-184.34712862,0.00014968,2]
[400257800,1767233440531,-2418.41541001,0.00015,2]
[400257802,1767233440540,-1898.0,0.00015068,2]
[400257804,1767233440550,-897766.8400122,0.00015068,2]
[400257806,1767233440560,-195.0,0.00015068,2]
[400257808,1767233440570,-195.0,0.00015068,2]
[400257810,1767233440580,-157.65,0.00015084,2]
[400257812,1767233440589,-1000.0,0.00015145,2]
[400257814,1767233440599,-1578.69,0.00015153,2]
[400257816,1767233440609,-13126.4415177,0.00015183,2]
[400257818,1767233440619,-163.96687,0.00015197,2]
[400257820,1767233440628,-420.0,0.00015255,2]
[400257822,1767233440638,-305.0,0.00015255,2]
[400257824,1767233440647,-150.0,0.00015288,2]
[400257826,1767233440657,-150.0,0.00015288,2]
[400257828,1767233440666,-150.0,0.00015288,2]
[400257831,1767233440676,-150.0,0.00015288,2]
[400257833,1767233440685,-151.66074676,0.00015288,2]
[400257835,1767233440694,-150.0,0.00015288,2]
[400257837,1767233440704,-150.0,0.00015288,2]
[400257839,1767233440713,-150.0,0.00015288,2]
[400257841,1767233440723,-500.0,0.00015341,2]
[400257843,1767233440732,-152.01791421,0.00015369,2]
[400257845,1767233440742,-150.0,0.00015382,2]
[400257847,1767233440751,-163.96688,0.00015397,2]
[400257849,1767233440766,-13126.4415177,0.00015397,2]
[400257851,1767233440775,-150.0,0.00015429,2]
[400257853,1767233440785,-151.0,0.00015431,2]
[400257855,1767233440795,-150.0,0.00015476,2]
[400257857,1767233440804,-150.0,0.00015476,2]
[400257859,1767233440814,-6326.67369967,0.0001548,2]
[400257862,1767233440824,-150.0,0.00015571,2]
[400257864,1767233440833,-150.0,0.00015571,2]
[400257866,1767233440843,-211.0,0.00015583,2]
[400257868,1767233440852,-163.96687,0.00015597,2]
[400257870,1767233440861,-13126.4415177,0.00015612,2]
[400257872,1767233440871,-151.0,0.00015612,2]
[400257874,1767233440881,-151.0,0.00015612,2]
[400257876,1767233440890,-151.0,0.00015612,2]
[400257878,1767233440900,-280.301139,0.00015612,2]
[400257880,1767233440910,-255.0,0.0001562,2]
[400257882,1767233440920,-150.0,0.00015627,2]
[400257884,1767233440933,-167.63,0.0001565,2]
[400257886,1767233440943,-211.0,0.00015653,2]
[400257888,1767233440952,-150.0,0.00015665,2]
[400257890,1767233440962,-150.0,0.00015665,2]
[400257892,1767233440971,-150.0,0.00015712,2]
[400257894,1767233440981,-211.0,0.00015745,2]
[400257896,1767233440991,-150.0,0.0001576,2]
[400257898,1767233441000,-30000.0,0.00015767,2]
[400257901,1767233441014,-151.0,0.0001577,2]
[400257903,1767233441024,-211.0,0.0001577,2]
[400257905,1767233441040,-300.0,0.00015781,2]
[400257907,1767233441050,-163.96688,0.00015797,2]
[400257909,1767233441059,-13126.4415177,0.00015827,2]
[400257911,1767233441069,-211.0,0.00015854,2]
[400257913,1767233441078,-150.0,0.00015854,2]
[400257915,1767233441087,-150.0,0.00015854,2]
[400257917,1767233441096,-150.0,0.00015854,2]
[400257919,1767233441105,-150.0,0.00015854,2]
[400257921,1767233441115,-151.0,0.00015921,2]
[400257924,1767233441129,-150.0,0.00015948,2]
[400257926,1767233441139,-211.0,0.00015949,2]
[400257928,1767233441148,-150.0,0.00015967,2]
[400257930,1767233441158,-150.0,0.00015995,2]
[400257932,1767233441167,-163.96687,0.00015997,2]
[400257934,1767233441177,-11802.09272208,0.00016,2]
[400257936,1767233441186,-12411.64927789,0.00016,4]
[400257938,1767233441196,-263.59,0.00016,2]
[400257940,1767233441205,-222.79183717,0.00016033,2]
[400257942,1767233441215,-151.0,0.00016041,2]
[400257944,1767233441225,-151.0,0.00016041,2]
[400257947,1767233441235,-151.0,0.00016041,2]
[400257949,1767233441245,-13126.4415177,0.00016041,2]
[400257951,1767233441255,-150.0,0.00016043,2]
[400257953,1767233441264,-150.0,0.00016043,2]
[400257955,1767233441274,-168.0,0.00016043,2]
[400257957,1767233441283,-1222.15,0.0001606,2]
[400257959,1767233441294,-1222.15,0.0001606,2]
[400257961,1767233441303,-1222.15,0.0001606,2]
[400257963,1767233441313,-1222.15,0.0001606,2]
[400257965,1767233441323,-1222.15,0.0001606,2]
[400257967,1767233441333,-1222.15,0.0001606,2]
[400257969,1767233441343,-1222.15,0.0001606,2]
[400257971,1767233441353,-1222.15,0.0001606,2]
[400257973,1767233441363,-3973.0,0.00016071,2]
[400257975,1767233441372,-1600.0,0.00016081,2]
[400257977,1767233441381,-3973.0,0.00016088,2]
[400257979,1767233441391,-1000.0,0.000161,2]
[400257981,1767233441400,-211.0,0.00016115,2]
[400257983,1767233441410,-150.0,0.00016137,2]
[400257985,1767233441419,-150.0,0.00016137,2]
[400257987,1767233441429,-150.0,0.00016137,2]
[400257989,1767233441439,-211.0,0.00016185,2]
[400257991,1767233441449,-211.0,0.00016196,2]
[400257993,1767233441458,-163.96688,0.00016197,2]
[400257995,1767233441471,-373.61415399,0.00016231,2]
[400257998,1767233441484,-150.0,0.00016231,2]
[400258000,1767233441493,-150.0,0.00016231,2]
[400258002,1767233441503,-13126.4415177,0.00016256,2]
[400258004,1767233441512,-167.63,0.0001627,2]
[400258006,1767233441522,-240.77,0.00016274,2]
[400258008,1767233441532,-150.0,0.00016279,2]
[400258010,1767233441542,-1000.0,0.000163,2]
[400258038,1767233441811,-150.0,0.00016307,2]
[400258040,1767233441821,-150.0,0.00016326,2]
[400258042,1767233441831,-184.34712861,0.00016338,2]
[400258044,1767233441841,-168.0,0.00016371,2]
[400258046,1767233441851,-168.0,0.00016389,2]
[400258048,1767233441861,-163.96687,0.00016397,2]
[400258050,1767233441870,-228.0,0.000164,2]
[400258052,1767233441879,-319.0,0.000164,2]
[400258054,1767233441889,-182.0,0.000164,2]
[400258056,1767233441899,-184.99689339,0.000164,2]
[400258059,1767233441910,-151.0,0.000164,2]
[400258061,1767233441919,-151.0,0.0001641,2]
[400258063,1767233441930,-293.02,0.00016416,2]
[400258065,1767233441941,-150.0,0.00016416,2]
[400258067,1767233441951,-150.0,0.00016416,2]
[400258069,1767233441961,-150.09,0.00016416,2]
[400258071,1767233441975,-150.0,0.00016416,2]
[400258073,1767233441984,-150.222,0.00016416,2]
[400258074,1767233441994,-150.133,0.00016416,2]
[400258075,1767233442012,-150.0,0.00016416,2]